[Event "Titled Tuesday Blitz October 25 Early 2022"]
[White "Pranav, V"]
[Black "Salman, Pavel"]
[WhiteFideId "25060783"]
[BlackFideId "24153753"]
[WhiteElo "2430"]
[BlackElo "2187"]
[Result "1-0"]
[Round "01"]
[TimeControl "180+1"]
[Date "2022.10.25"]
[WhiteClock "0:00:26"]
[BlackClock "0:00:14"]

1. Nf3 {[%clk 0:02:59]}  c5 {[%clk 0:02:59]} 2. c4 {[%clk 0:02:59]}  b6 {[%clk 0:02:59]} 3. Nc3 {[%clk 0:03:00]}  Bb7 {[%clk 0:03:00]} 4. e3 {[%clk 0:03:00]}  Nf6 {[%clk 0:02:59]} 5. Be2 {[%clk 0:03:00]}  e6 {[%clk 0:02:59]} 6. O-O {[%clk 0:03:01]}  Be7 {[%clk 0:03:00]} 7. b3 {[%clk 0:03:01]}  O-O {[%clk 0:03:00]} 8. Bb2 {[%clk 0:03:02]}  a6 {[%clk 0:03:00]} 9. d4 {[%clk 0:03:02]}  cxd4 {[%clk 0:03:00]} 10. Nxd4 {[%clk 0:03:02]}  d6 {[%clk 0:03:00]} 11. Bf3 {[%clk 0:03:01]}  Qc7 {[%clk 0:03:00]} 12. Rc1 {[%clk 0:03:01]}  Nbd7 {[%clk 0:03:00]} 13. h3 {[%clk 0:02:59]}  Rac8 {[%clk 0:02:59]} 14. Bxb7 {[%clk 0:02:52]}  Qxb7 {[%clk 0:02:59]} 15. Qe2 {[%clk 0:02:53]}  Rfd8 {[%clk 0:02:57]} 16. Rfd1 {[%clk 0:02:50]}  Bf8 {[%clk 0:02:54]} 17. e4 {[%clk 0:02:48]}  Nc5 {[%clk 0:02:48]} 18. f3 {[%clk 0:02:42]}  g6 {[%clk 0:02:46]} 19. Qe3 {[%clk 0:02:37]}  Bg7 {[%clk 0:02:45]} 20. Nde2 {[%clk 0:02:34]}  b5 {[%clk 0:02:42]} 21. b4 {[%clk 0:02:29]}  Ncd7 {[%clk 0:02:36]} 22. cxb5 {[%clk 0:02:27]}  axb5 {[%clk 0:02:36]} 23. Rxd6 {[%clk 0:02:17]}  Ne5 {[%clk 0:02:28]} 24. Rxd8+ {[%clk 0:01:54]}  Rxd8 {[%clk 0:02:29]} 25. Rc2 {[%clk 0:01:43]}  Nc4 {[%clk 0:02:18]} 26. Qc5 {[%clk 0:01:42]}  Nd7 {[%clk 0:01:51]} 27. Qf2 {[%clk 0:01:18]}  Nxb2 {[%clk 0:01:50]} 28. Rxb2 {[%clk 0:01:18]}  Nb6 {[%clk 0:01:50]} 29. Rb1 {[%clk 0:01:13]}  Rd2 {[%clk 0:01:39]} 30. Qc5 {[%clk 0:01:09]}  Na4 {[%clk 0:01:26]} 31. Nxa4 {[%clk 0:00:59]}  Rxe2 {[%clk 0:01:10]} 32. Rd1 {[%clk 0:00:58]}  h5 {[%clk 0:00:58]} 33. Nb6 {[%clk 0:00:56]}  Rxa2 {[%clk 0:00:49]} 34. Rd8+ {[%clk 0:00:49]}  Kh7 {[%clk 0:00:49]} 35. Kh2 {[%clk 0:00:41]}  h4 {[%clk 0:00:35]} 36. Nd7 {[%clk 0:00:36]}  Ra1 {[%clk 0:00:22]} 37. Qg5 {[%clk 0:00:26]}  Qc7+ {[%clk 0:00:20]} 38. e5 {[%clk 0:00:27]}  Qc1 {[%clk 0:00:15]} 39. Qxh4+ {[%clk 0:00:26]}  Bh6 {[%clk 0:00:15]} 40. Nf6+ {[%clk 0:00:25]}  Kg7 {[%clk 0:00:14]} 41. Rg8# {[%clk 0:00:26]} 1-0


[Site "https://www.chess.com"]

[Event "Titled Tuesday Blitz October 25 Early 2022"]
[White "Seemann, Jakub"]
[Black "Firouzja, Alireza"]
[WhiteFideId "21874697"]
[BlackFideId "12573981"]
[WhiteElo "2275"]
[BlackElo "2903"]
[Result "0-1"]
[Round "01"]
[TimeControl "180+1"]
[Date "2022.10.25"]
[WhiteClock "0:00:27"]
[BlackClock "0:01:47"]

1. d4 {[%clk 0:02:59]}  Nf6 {[%clk 0:02:58]} 2. c4 {[%clk 0:03:00]}  c5 {[%clk 0:02:54]} 3. d5 {[%clk 0:03:00]}  e5 {[%clk 0:02:55]} 4. Nc3 {[%clk 0:02:58]}  d6 {[%clk 0:02:55]} 5. g3 {[%clk 0:02:55]}  g6 {[%clk 0:02:55]} 6. Bg2 {[%clk 0:02:56]}  Bg7 {[%clk 0:02:55]} 7. e4 {[%clk 0:02:55]}  O-O {[%clk 0:02:56]} 8. Nge2 {[%clk 0:02:55]}  Nbd7 {[%clk 0:02:49]} 9. h3 {[%clk 0:02:52]}  Ne8 {[%clk 0:02:45]} 10. g4 {[%clk 0:02:51]}  a6 {[%clk 0:02:43]} 11. Be3 {[%clk 0:02:46]}  b5 {[%clk 0:02:34]} 12. cxb5 {[%clk 0:02:47]}  axb5 {[%clk 0:02:35]} 13. Nxb5 {[%clk 0:02:47]}  Ba6 {[%clk 0:02:36]} 14. Nbc3 {[%clk 0:02:44]}  Rb8 {[%clk 0:02:27]} 15. Qc2 {[%clk 0:02:43]}  Bf6 {[%clk 0:02:23]} 16. Qc1 {[%clk 0:02:30]}  Bh4 {[%clk 0:02:14]} 17. O-O {[%clk 0:02:26]}  Ng7 {[%clk 0:02:13]} 18. Re1 {[%clk 0:02:24]}  f5 {[%clk 0:02:13]} 19. f4 {[%clk 0:02:16]}  Bxe1 {[%clk 0:02:10]} 20. Qxe1 {[%clk 0:02:17]}  Rxb2 {[%clk 0:02:06]} 21. gxf5 {[%clk 0:01:44]}  gxf5 {[%clk 0:02:07]} 22. Ng3 {[%clk 0:01:45]}  fxe4 {[%clk 0:01:56]} 23. fxe5 {[%clk 0:01:41]}  Nxe5 {[%clk 0:01:55]} 24. Ngxe4 {[%clk 0:01:41]}  Nf5 {[%clk 0:01:49]} 25. Bg5 {[%clk 0:01:39]}  Qe8 {[%clk 0:01:48]} 26. Kh1 {[%clk 0:01:10]}  Qg6 {[%clk 0:01:48]} 27. Qc1 {[%clk 0:00:55]}  Rxg2 {[%clk 0:01:47]} 28. Kxg2 {[%clk 0:00:56]}  h6 {[%clk 0:01:47]} 29. h4 {[%clk 0:00:27]}  Nxh4+ {[%clk 0:01:47]} 0-1


[Site "https://www.chess.com"]

[Event "Titled Tuesday Blitz October 25 Early 2022"]
[White "Stepanencu, Nicodim-Cosmin"]
[Black "Chigaev, Maksim"]
[WhiteFideId "1256220"]
[BlackFideId "4108116"]
[WhiteElo "2185"]
[BlackElo "2537"]
[Result "1-0"]
[Round "01"]
[TimeControl "180+1"]
[Date "2022.10.25"]
[WhiteClock "0:00:02"]
[BlackClock "0:00:11"]

1. d4 {[%clk 0:02:55]}  Nf6 {[%clk 0:02:59]} 2. c4 {[%clk 0:02:55]}  e6 {[%clk 0:02:59]} 3. Nc3 {[%clk 0:02:56]}  Bb4 {[%clk 0:02:58]} 4. e3 {[%clk 0:02:56]}  c5 {[%clk 0:02:58]} 5. a3 {[%clk 0:02:56]}  Bxc3+ {[%clk 0:02:57]} 6. bxc3 {[%clk 0:02:57]}  Nc6 {[%clk 0:02:57]} 7. Bd3 {[%clk 0:02:57]}  b6 {[%clk 0:02:55]} 8. Nf3 {[%clk 0:02:56]}  Ba6 {[%clk 0:02:55]} 9. O-O {[%clk 0:02:55]}  d6 {[%clk 0:02:53]} 10. Nd2 {[%clk 0:02:45]}  O-O {[%clk 0:02:50]} 11. Bb2 {[%clk 0:02:43]}  d5 {[%clk 0:02:45]} 12. Qe2 {[%clk 0:02:37]}  Rc8 {[%clk 0:02:42]} 13. cxd5 {[%clk 0:02:36]}  Bxd3 {[%clk 0:02:41]} 14. Qxd3 {[%clk 0:02:37]}  exd5 {[%clk 0:02:42]} 15. dxc5 {[%clk 0:02:33]}  bxc5 {[%clk 0:02:32]} 16. c4 {[%clk 0:02:33]}  dxc4 {[%clk 0:02:31]} 17. Qxd8 {[%clk 0:02:33]}  Rfxd8 {[%clk 0:02:32]} 18. Nxc4 {[%clk 0:02:34]}  Nd5 {[%clk 0:02:31]} 19. Rfd1 {[%clk 0:02:23]}  Nb6 {[%clk 0:02:31]} 20. Nd6 {[%clk 0:02:08]}  Rb8 {[%clk 0:02:25]} 21. Rac1 {[%clk 0:01:53]}  Na4 {[%clk 0:02:14]} 22. Ba1 {[%clk 0:01:53]}  f6 {[%clk 0:02:13]} 23. h3 {[%clk 0:01:33]}  Na5 {[%clk 0:02:12]} 24. Ne4 {[%clk 0:00:54]}  Nb3 {[%clk 0:02:08]} 25. Rb1 {[%clk 0:00:52]}  c4 {[%clk 0:01:47]} 26. Nc3 {[%clk 0:00:40]}  Nac5 {[%clk 0:01:37]} 27. Ne2 {[%clk 0:00:27]}  a5 {[%clk 0:01:16]} 28. Bc3 {[%clk 0:00:21]}  a4 {[%clk 0:01:12]} 29. Nd4 {[%clk 0:00:16]}  Ne4 {[%clk 0:01:00]} 30. Bb4 {[%clk 0:00:16]}  Rbc8 {[%clk 0:00:37]} 31. f3 {[%clk 0:00:13]}  c3 {[%clk 0:00:30]} 32. fxe4 {[%clk 0:00:07]}  Rxd4 {[%clk 0:00:27]} 33. exd4 {[%clk 0:00:03]}  c2 {[%clk 0:00:27]} 34. d5 {[%clk 0:00:02]}  Kf7 {[%clk 0:00:21]} 35. Kf2 {[%clk 0:00:02]}  Rc4 {[%clk 0:00:19]} 36. Ke3 {[%clk 0:00:02]}  Ke8 {[%clk 0:00:14]} 37. Rbc1 {[%clk 0:00:02]}  cxd1=Q {[%clk 0:00:12]} 38. Rxd1 {[%clk 0:00:03]}  Kd7 {[%clk 0:00:12]} 39. Kd3 {[%clk 0:00:01]}  Rc8 {[%clk 0:00:12]} 40. Ke3 {[%clk 0:00:01]}  Rc2 {[%clk 0:00:11]} 41. Rg1 {[%clk 0:00:01]}  h5 {[%clk 0:00:11]} 42. Kf4 {[%clk 0:00:02]}  Ke8 {[%clk 0:00:11]} 43. Kf5 {[%clk 0:00:02]}  Kf7 {[%clk 0:00:11]} 44. Kf4 {[%clk 0:00:03]}  g5+ {[%clk 0:00:11]} 45. Ke3 {[%clk 0:00:02]}  h4 {[%clk 0:00:11]} 46. Kd3 {[%clk 0:00:02]}  Rc8 {[%clk 0:00:12]} 47. Ke3 {[%clk 0:00:02]}  Kg6 {[%clk 0:00:12]} 48. Kd3 {[%clk 0:00:03]}  f5 {[%clk 0:00:12]} 49. e5 {[%clk 0:00:03]}  Rd8 {[%clk 0:00:11]} 50. d6 {[%clk 0:00:02]} 1-0


[Site "https://www.chess.com"]

[Event "Titled Tuesday Blitz October 25 Early 2022"]
[White "Svane, Rasmus"]
[Black "Chizhikov, Vladislav"]
[WhiteFideId "4657101"]
[BlackFideId "4178157"]
[WhiteElo "2674"]
[BlackElo "2179"]
[Result "1-0"]
[Round "01"]
[TimeControl "180+1"]
[Date "2022.10.25"]
[WhiteClock "0:01:52"]
[BlackClock "0:01:18"]

1. Nf3 {[%clk 0:03:00]}  c5 {[%clk 0:02:58]} 2. c4 {[%clk 0:02:57]}  Nc6 {[%clk 0:02:58]} 3. Nc3 {[%clk 0:02:52]}  g6 {[%clk 0:02:58]} 4. e3 {[%clk 0:02:50]}  Bg7 {[%clk 0:02:56]} 5. d4 {[%clk 0:02:51]}  cxd4 {[%clk 0:02:55]} 6. exd4 {[%clk 0:02:52]}  d6 {[%clk 0:02:55]} 7. Be2 {[%clk 0:02:52]}  Bg4 {[%clk 0:02:54]} 8. O-O {[%clk 0:02:52]}  Bxf3 {[%clk 0:02:50]} 9. Bxf3 {[%clk 0:02:53]}  Nxd4 {[%clk 0:02:50]} 10. Bxb7 {[%clk 0:02:52]}  Rb8 {[%clk 0:02:50]} 11. Be4 {[%clk 0:02:43]}  Nf5 {[%clk 0:02:42]} 12. Qa4+ {[%clk 0:02:27]}  Kf8 {[%clk 0:02:41]} 13. Qxa7 {[%clk 0:02:27]}  Nf6 {[%clk 0:02:35]} 14. Bxf5 {[%clk 0:02:27]}  gxf5 {[%clk 0:02:35]} 15. a4 {[%clk 0:02:23]}  Rb4 {[%clk 0:02:31]} 16. a5 {[%clk 0:02:21]}  Rxc4 {[%clk 0:02:27]} 17. a6 {[%clk 0:02:21]}  Ne4 {[%clk 0:02:21]} 18. Nxe4 {[%clk 0:02:16]}  fxe4 {[%clk 0:02:20]} 19. Qb7 {[%clk 0:02:16]}  Rc8 {[%clk 0:01:40]} 20. a7 {[%clk 0:02:12]}  Ra8 {[%clk 0:01:40]} 21. Be3 {[%clk 0:02:12]}  Be5 {[%clk 0:01:34]} 22. Bh6+ {[%clk 0:02:05]}  Bg7 {[%clk 0:01:25]} 23. Bg5 {[%clk 0:02:05]}  Bf6 {[%clk 0:01:20]} 24. Bxf6 {[%clk 0:02:03]}  exf6 {[%clk 0:01:21]} 25. Qxe4 {[%clk 0:01:53]}  Kg7 {[%clk 0:01:19]} 26. Qg4+ {[%clk 0:01:53]}  Kh6 {[%clk 0:01:18]} 27. Ra3 {[%clk 0:01:52]} 1-0


[Site "https://www.chess.com"]

[Event "Titled Tuesday Blitz October 25 Early 2022"]
[White "Toncheva, Nadya"]
[Black "Deac, Bogdan-Daniel"]
[WhiteFideId "2924056"]
[BlackFideId "1226380"]
[WhiteElo "2101"]
[BlackElo "2648"]
[Result "0-1"]
[Round "01"]
[TimeControl "180+1"]
[Date "2022.10.25"]
[WhiteClock "0:00:27"]
[BlackClock "0:01:05"]

1. e4 {[%clk 0:03:00]}  c6 {[%clk 0:02:27]} 2. d4 {[%clk 0:03:00]}  d5 {[%clk 0:02:21]} 3. Nc3 {[%clk 0:03:00]}  a6 {[%clk 0:02:12]} 4. Nf3 {[%clk 0:02:59]}  Bg4 {[%clk 0:02:12]} 5. h3 {[%clk 0:02:57]}  Bh5 {[%clk 0:02:11]} 6. Be3 {[%clk 0:02:55]}  e6 {[%clk 0:02:09]} 7. Bd3 {[%clk 0:02:52]}  Nf6 {[%clk 0:02:08]} 8. e5 {[%clk 0:02:50]}  Nfd7 {[%clk 0:02:07]} 9. Ne2 {[%clk 0:02:47]}  Bxf3 {[%clk 0:02:05]} 10. gxf3 {[%clk 0:02:48]}  c5 {[%clk 0:02:05]} 11. c3 {[%clk 0:02:46]}  Nc6 {[%clk 0:02:04]} 12. Rg1 {[%clk 0:02:40]}  g6 {[%clk 0:01:54]} 13. Bg5 {[%clk 0:02:07]}  Be7 {[%clk 0:01:40]} 14. Bxe7 {[%clk 0:02:07]}  Qxe7 {[%clk 0:01:40]} 15. Qd2 {[%clk 0:02:07]}  cxd4 {[%clk 0:01:32]} 16. cxd4 {[%clk 0:02:06]}  Qh4 {[%clk 0:01:33]} 17. Qg5 {[%clk 0:01:37]}  Nxd4 {[%clk 0:01:24]} 18. Qe3 {[%clk 0:00:49]}  Nxe5 {[%clk 0:01:10]} 19. Rg4 {[%clk 0:00:40]}  Ndxf3+ {[%clk 0:01:06]} 20. Kd1 {[%clk 0:00:32]}  Nxg4 {[%clk 0:01:05]} 21. hxg4 {[%clk 0:00:27]}  Qh1+ {[%clk 0:01:05]} 0-1


[Site "https://www.chess.com"]

[Event "Titled Tuesday Blitz October 25 Early 2022"]
[White "Wirig, Anthony"]
[Black "Ronka, Erik"]
[WhiteFideId "615013"]
[BlackFideId "505080"]
[WhiteElo "2474"]
[BlackElo "2264"]
[Result "1-0"]
[Round "01"]
[TimeControl "180+1"]
[Date "2022.10.25"]
[WhiteClock "0:00:03"]
[BlackClock "0:00:03"]

1. d4 {[%clk 0:02:52]}  d5 {[%clk 0:02:59]} 2. Nf3 {[%clk 0:02:51]}  Nf6 {[%clk 0:02:59]} 3. c4 {[%clk 0:02:51]}  c6 {[%clk 0:03:00]} 4. Qc2 {[%clk 0:02:51]}  dxc4 {[%clk 0:02:54]} 5. e4 {[%clk 0:02:51]}  b5 {[%clk 0:02:53]} 6. b3 {[%clk 0:02:51]}  cxb3 {[%clk 0:02:52]} 7. axb3 {[%clk 0:02:52]}  e6 {[%clk 0:02:52]} 8. Bd2 {[%clk 0:02:52]}  a5 {[%clk 0:02:52]} 9. Bd3 {[%clk 0:02:51]}  Be7 {[%clk 0:02:50]} 10. O-O {[%clk 0:02:51]}  h6 {[%clk 0:02:50]} 11. Rc1 {[%clk 0:02:48]}  O-O {[%clk 0:02:47]} 12. Nc3 {[%clk 0:02:42]}  Bb7 {[%clk 0:02:36]} 13. e5 {[%clk 0:02:41]}  Nd5 {[%clk 0:02:35]} 14. Nxd5 {[%clk 0:02:41]}  cxd5 {[%clk 0:02:08]} 15. Bxb5 {[%clk 0:02:37]}  Qb6 {[%clk 0:02:08]} 16. Bd3 {[%clk 0:01:58]}  Nc6 {[%clk 0:02:07]} 17. Bc3 {[%clk 0:01:13]}  Nb4 {[%clk 0:02:05]} 18. Bxb4 {[%clk 0:01:12]}  Bxb4 {[%clk 0:02:06]} 19. h4 {[%clk 0:01:09]}  Rfc8 {[%clk 0:02:03]} 20. Qe2 {[%clk 0:01:08]}  Bc3 {[%clk 0:01:56]} 21. Ra4 {[%clk 0:00:56]}  Qxb3 {[%clk 0:01:53]} 22. Bc2 {[%clk 0:00:56]}  Qb6 {[%clk 0:01:41]} 23. Qd3 {[%clk 0:00:39]}  g6 {[%clk 0:01:19]} 24. h5 {[%clk 0:00:36]}  Ba6 {[%clk 0:01:19]} 25. Qe3 {[%clk 0:00:36]}  Kg7 {[%clk 0:01:07]} 26. Bxg6 {[%clk 0:00:21]}  fxg6 {[%clk 0:01:08]} 27. Rxc3 {[%clk 0:00:19]}  Bb5 {[%clk 0:00:13]} 28. Ra1 {[%clk 0:00:13]}  Rxc3 {[%clk 0:00:11]} 29. Qxc3 {[%clk 0:00:14]}  Qc6 {[%clk 0:00:12]} 30. Qd2 {[%clk 0:00:07]}  g5 {[%clk 0:00:12]} 31. Nxg5 {[%clk 0:00:05]}  hxg5 {[%clk 0:00:09]} 32. Qxg5+ {[%clk 0:00:06]}  Kh8 {[%clk 0:00:09]} 33. Qf6+ {[%clk 0:00:05]}  Kh7 {[%clk 0:00:09]} 34. Qf7+ {[%clk 0:00:04]}  Kh8 {[%clk 0:00:09]} 35. Qf6+ {[%clk 0:00:04]}  Kh7 {[%clk 0:00:09]} 36. Qg6+ {[%clk 0:00:03]}  Kh8 {[%clk 0:00:09]} 37. Qh6+ {[%clk 0:00:03]}  Kg8 {[%clk 0:00:09]} 38. Ra3 {[%clk 0:00:03]}  Kf7 {[%clk 0:00:02]} 39. Rf3+ {[%clk 0:00:03]}  Ke8 {[%clk 0:00:02]} 40. Rf8+ {[%clk 0:00:02]}  Kd7 {[%clk 0:00:03]} 41. Qg7# {[%clk 0:00:03]} 1-0


[Site "https://www.chess.com"]

[Event "Titled Tuesday Blitz October 25 Early 2022"]
[White "Aizpurua, Patrick Emilio"]
[Black "Svane, Rasmus"]
[WhiteFideId "6600522"]
[BlackFideId "4657101"]
[WhiteElo "2378"]
[BlackElo "2674"]
[Result "0-1"]
[Round "02"]
[TimeControl "180+1"]
[Date "2022.10.25"]
[WhiteClock "0:00:11"]
[BlackClock "0:00:10"]

1. d4 {[%clk 0:03:00]}  d5 {[%clk 0:02:58]} 2. Nf3 {[%clk 0:03:01]}  e6 {[%clk 0:02:59]} 3. c4 {[%clk 0:03:02]}  a6 {[%clk 0:02:59]} 4. e3 {[%clk 0:02:59]}  Nf6 {[%clk 0:02:59]} 5. Nc3 {[%clk 0:02:58]}  dxc4 {[%clk 0:02:59]} 6. Bxc4 {[%clk 0:02:58]}  b5 {[%clk 0:02:59]} 7. Bd3 {[%clk 0:02:59]}  Bb7 {[%clk 0:02:59]} 8. O-O {[%clk 0:02:59]}  Nbd7 {[%clk 0:03:00]} 9. Qe2 {[%clk 0:02:59]}  c5 {[%clk 0:03:00]} 10. dxc5 {[%clk 0:02:55]}  Nxc5 {[%clk 0:03:01]} 11. Bc2 {[%clk 0:02:55]}  Qc7 {[%clk 0:02:52]} 12. Bd2 {[%clk 0:02:36]}  Be7 {[%clk 0:02:36]} 13. Rac1 {[%clk 0:02:35]}  Qb8 {[%clk 0:02:30]} 14. b4 {[%clk 0:02:24]}  Ncd7 {[%clk 0:02:30]} 15. a4 {[%clk 0:02:06]}  Bxb4 {[%clk 0:02:29]} 16. axb5 {[%clk 0:02:06]}  a5 {[%clk 0:02:29]} 17. e4 {[%clk 0:01:52]}  O-O {[%clk 0:02:24]} 18. Nb1 {[%clk 0:01:35]}  Ne5 {[%clk 0:02:11]} 19. Bf4 {[%clk 0:01:25]}  Bd6 {[%clk 0:02:04]} 20. Nxe5 {[%clk 0:01:20]}  Bxe5 {[%clk 0:02:04]} 21. Bxe5 {[%clk 0:01:18]}  Qxe5 {[%clk 0:02:05]} 22. Nd2 {[%clk 0:01:19]}  a4 {[%clk 0:02:02]} 23. Nf3 {[%clk 0:01:14]}  Qf4 {[%clk 0:01:58]} 24. Rfe1 {[%clk 0:01:03]}  a3 {[%clk 0:01:58]} 25. Ra1 {[%clk 0:01:00]}  Rfc8 {[%clk 0:01:56]} 26. Bd3 {[%clk 0:00:58]}  h6 {[%clk 0:01:52]} 27. h3 {[%clk 0:00:56]}  Rc3 {[%clk 0:01:52]} 28. Bb1 {[%clk 0:00:43]}  Qc7 {[%clk 0:01:28]} 29. Nd2 {[%clk 0:00:38]}  Qc5 {[%clk 0:01:25]} 30. e5 {[%clk 0:00:29]}  Qd5 {[%clk 0:01:08]} 31. Ne4 {[%clk 0:00:20]}  Nxe4 {[%clk 0:00:47]} 32. Bxe4 {[%clk 0:00:21]}  Qxe4 {[%clk 0:00:32]} 33. Qxe4 {[%clk 0:00:22]}  Bxe4 {[%clk 0:00:33]} 34. Rxe4 {[%clk 0:00:22]}  Rb3 {[%clk 0:00:19]} 35. Re3 {[%clk 0:00:20]}  Rxe3 {[%clk 0:00:18]} 36. fxe3 {[%clk 0:00:21]}  Rb8 {[%clk 0:00:17]} 37. Rxa3 {[%clk 0:00:20]}  Rxb5 {[%clk 0:00:17]} 38. Ra8+ {[%clk 0:00:20]}  Kh7 {[%clk 0:00:18]} 39. Ra7 {[%clk 0:00:21]}  Kg6 {[%clk 0:00:18]} 40. Kf2 {[%clk 0:00:21]}  Rxe5 {[%clk 0:00:18]} 41. g3 {[%clk 0:00:20]}  Rf5+ {[%clk 0:00:19]} 42. Ke2 {[%clk 0:00:20]}  Kf6 {[%clk 0:00:19]} 43. Rb7 {[%clk 0:00:20]}  g5 {[%clk 0:00:19]} 44. Ra7 {[%clk 0:00:20]}  Rb5 {[%clk 0:00:19]} 45. Kf3 {[%clk 0:00:19]}  Rb1 {[%clk 0:00:19]} 46. Ra8 {[%clk 0:00:18]}  Rb2 {[%clk 0:00:19]} 47. Rc8 {[%clk 0:00:16]}  Rh2 {[%clk 0:00:18]} 48. Kg4 {[%clk 0:00:14]}  Kg6 {[%clk 0:00:18]} 49. Rg8+ {[%clk 0:00:14]}  Kh7 {[%clk 0:00:18]} 50. Rf8 {[%clk 0:00:14]}  f5+ {[%clk 0:00:16]} 51. Kf3 {[%clk 0:00:13]}  Rxh3 {[%clk 0:00:15]} 52. Re8 {[%clk 0:00:10]}  Rh1 {[%clk 0:00:13]} 53. Rxe6 {[%clk 0:00:09]}  Kg7 {[%clk 0:00:13]} 54. Ra6 {[%clk 0:00:09]}  Rf1+ {[%clk 0:00:13]} 55. Kg2 {[%clk 0:00:10]}  Rb1 {[%clk 0:00:14]} 56. Kf2 {[%clk 0:00:10]}  Rd1 {[%clk 0:00:14]} 57. Ra2 {[%clk 0:00:08]}  Rd5 {[%clk 0:00:14]} 58. Kf3 {[%clk 0:00:09]}  Kg6 {[%clk 0:00:14]} 59. e4 {[%clk 0:00:09]}  Rd3+ {[%clk 0:00:15]} 60. Kg2 {[%clk 0:00:09]}  fxe4 {[%clk 0:00:15]} 61. Ra6+ {[%clk 0:00:09]}  Kh5 {[%clk 0:00:15]} 62. Re6 {[%clk 0:00:09]}  Re3 {[%clk 0:00:14]} 63. Kh3 {[%clk 0:00:09]}  g4+ {[%clk 0:00:12]} 64. Kg2 {[%clk 0:00:09]}  Kg5 {[%clk 0:00:11]} 65. Re5+ {[%clk 0:00:10]}  Kf6 {[%clk 0:00:11]} 66. Re8 {[%clk 0:00:10]}  h5 {[%clk 0:00:11]} 67. Rh8 {[%clk 0:00:10]}  Kg6 {[%clk 0:00:11]} 68. Re8 {[%clk 0:00:11]}  Re2+ {[%clk 0:00:11]} 69. Kf1 {[%clk 0:00:11]}  Re3 {[%clk 0:00:12]} 70. Kf2 {[%clk 0:00:11]}  Rf3+ {[%clk 0:00:11]} 71. Kg2 {[%clk 0:00:12]}  e3 {[%clk 0:00:12]} 72. Re4 {[%clk 0:00:11]}  Kf5 {[%clk 0:00:13]} 73. Re8 {[%clk 0:00:12]}  Kf6 {[%clk 0:00:10]} 74. Re4 {[%clk 0:00:12]}  Kf5 {[%clk 0:00:10]} 75. Re8 {[%clk 0:00:12]}  Rf2+ {[%clk 0:00:10]} 76. Kg1 {[%clk 0:00:12]}  Re2 {[%clk 0:00:09]} 77. Kf1 {[%clk 0:00:12]}  Rf2+ {[%clk 0:00:08]} 78. Kg1 {[%clk 0:00:12]}  Kg5 {[%clk 0:00:05]} 79. Rxe3 {[%clk 0:00:12]}  Rf3 {[%clk 0:00:06]} 80. Re5+ {[%clk 0:00:10]}  Kg6 {[%clk 0:00:06]} 81. Kg2 {[%clk 0:00:11]}  Rf5 {[%clk 0:00:07]} 82. Re6+ {[%clk 0:00:10]}  Kg5 {[%clk 0:00:07]} 83. Re2 {[%clk 0:00:11]}  Rb5 {[%clk 0:00:07]} 84. Rc2 {[%clk 0:00:11]}  Rb3 {[%clk 0:00:08]} 85. Rd2 {[%clk 0:00:11]}  Rb5 {[%clk 0:00:08]} 86. Rc2 {[%clk 0:00:12]}  Kf5 {[%clk 0:00:09]} 87. Rd2 {[%clk 0:00:12]}  Ke4 {[%clk 0:00:09]} 88. Rf2 {[%clk 0:00:12]}  Ke3 {[%clk 0:00:09]} 89. Ra2 {[%clk 0:00:11]}  Rd5 {[%clk 0:00:10]} 90. Ra3+ {[%clk 0:00:11]}  Rd3 {[%clk 0:00:10]} 91. Ra5 {[%clk 0:00:11]}  Rd2+ {[%clk 0:00:10]} 92. Kg1 {[%clk 0:00:10]}  Kf3 {[%clk 0:00:11]} 93. Rxh5 {[%clk 0:00:10]}  Kxg3 {[%clk 0:00:11]} 94. Kf1 {[%clk 0:00:11]}  Rd1+ {[%clk 0:00:11]} 95. Ke2 {[%clk 0:00:11]}  Rg1 {[%clk 0:00:11]} 96. Rh8 {[%clk 0:00:11]}  Kg2 {[%clk 0:00:11]} 97. Rh7 {[%clk 0:00:10]}  g3 {[%clk 0:00:11]} 98. Rh8 {[%clk 0:00:10]}  Ra1 {[%clk 0:00:10]} 99. Rh7 {[%clk 0:00:11]}  Ra8 {[%clk 0:00:10]} 100. Rh8 {[%clk 0:00:11]}  Rxh8 {[%clk 0:00:10]} 0-1


[Site "https://www.chess.com"]

[Event "Titled Tuesday Blitz October 25 Early 2022"]
[White "Bacrot, Etienne"]
[Black "Migot, Tangi"]
[WhiteFideId "605506"]
[BlackFideId "662445"]
[WhiteElo "2666"]
[BlackElo "2606"]
[Result "1-0"]
[Round "02"]
[TimeControl "180+1"]
[Date "2022.10.25"]
[WhiteClock "0:00:43"]
[BlackClock "0:00:17"]

1. e4 {[%clk 0:03:00]}  c5 {[%clk 0:03:00]} 2. Nf3 {[%clk 0:03:01]}  a6 {[%clk 0:03:00]} 3. c4 {[%clk 0:03:00]}  d6 {[%clk 0:02:58]} 4. Nc3 {[%clk 0:02:59]}  Bg4 {[%clk 0:02:58]} 5. d4 {[%clk 0:02:45]}  Bxf3 {[%clk 0:02:50]} 6. gxf3 {[%clk 0:02:42]}  Nc6 {[%clk 0:02:50]} 7. d5 {[%clk 0:02:40]}  Nd4 {[%clk 0:02:50]} 8. Be3 {[%clk 0:02:40]}  Qb6 {[%clk 0:02:43]} 9. Rb1 {[%clk 0:02:30]}  e5 {[%clk 0:02:20]} 10. dxe6 {[%clk 0:02:28]}  fxe6 {[%clk 0:02:19]} 11. Bh3 {[%clk 0:02:16]}  e5 {[%clk 0:02:06]} 12. Nd5 {[%clk 0:02:13]}  Qd8 {[%clk 0:01:59]} 13. b4 {[%clk 0:01:59]}  Rb8 {[%clk 0:01:40]} 14. bxc5 {[%clk 0:01:47]}  dxc5 {[%clk 0:01:40]} 15. f4 {[%clk 0:01:47]}  Qh4 {[%clk 0:01:22]} 16. Bxd4 {[%clk 0:01:30]}  cxd4 {[%clk 0:01:13]} 17. Qa4+ {[%clk 0:01:29]}  b5 {[%clk 0:00:51]} 18. cxb5 {[%clk 0:01:28]}  axb5 {[%clk 0:00:33]} 19. Rxb5 {[%clk 0:01:26]}  Rxb5 {[%clk 0:00:31]} 20. Qxb5+ {[%clk 0:01:25]}  Kf7 {[%clk 0:00:32]} 21. Qd7+ {[%clk 0:01:09]}  Be7 {[%clk 0:00:32]} 22. Qf5+ {[%clk 0:00:45]}  Nf6 {[%clk 0:00:19]} 23. Qe6+ {[%clk 0:00:44]}  Kg6 {[%clk 0:00:17]} 24. Nxe7+ {[%clk 0:00:44]}  Kh6 {[%clk 0:00:17]} 25. Nf5+ {[%clk 0:00:43]} 1-0


[Site "https://www.chess.com"]